Workbook

Sheet Sheet1
A1: 附件6
A2: 部门绩效自评结果公开汇总表
A4: 主管部门：石家庄市教育局 | J4: 单位：万元
A5: 序号 | B5: 项目名称 | C5: 项目实施单位 | D5: 预算数（调整后） | G5: 执行数（至2024年底） | I5: 结余数 | J5: 结余交回财政数 | K5: 自评得分 | L5: 自评结果应用意见
D6: 中央 | E6: 省级 | F6: 市级 | G6: 市级 | H6: 县（市）区级
A7: 1 | B7: 党组织活动经费 | C7: 石家庄学院 | F7: 81.09 | G7: 81.09 | I7: 0 | J7: 0 | K7: 98 | L7: 应用
A8: 2 | B8: 高校学生资助市级资金 | C8: 石家庄学院 | F8: 510.18 | G8: 510.18 | I8: 0 | J8: 0 | K8: 100 | L8: 应用
A9: 3 | B9: 科研经费 | C9: 石家庄学院 | F9: 177.00 | G9: 177.00 | I9: 0 | J9: 0 | K9: 100 | L9: 应用
A10: 4 | B10: 人才引进及培养经费 | C10: 石家庄学院 | F10: 175.00 | G10: 175.00 | I10: 0 | J10: 0 | K10: 100 | L10: 应用
A11: 5 | B11: 思想政治工作经费 | C11: 石家庄学院 | F11: 181.00 | G11: 181.00 | I11: 0 | J11: 0 | K11: 99 | L11: 应用
A12: 6 | B12: 提前下达2024年中央学生资助补助经费 | C12: 石家庄学院 | D12: 1060.00 | G12: 1060.00 | I12: 0 | J12: 0 | K12: 100 | L12: 应用
A13: 7 | B13: 提前下达2024年中央资金-就业、招生、创新创业等学生经费 | C13: 石家庄学院 | D13: 269.00 | G13: 269.00 | I13: 0 | J13: 0 | K13: 100 | L13: 应用
A14: 8 | B14: 提前下达2024年中央资金-图书设备购置 | C14: 石家庄学院 | D14: 500.00 | G14: 500.00 | I14: 0 | J14: 0 | K14: 97 | L14: 应用
A15: 9 | B15: 提前下达2024年中央资金-高质量本科教育体系 | C15: 石家庄学院 | D15: 290.80 | G15: 290.80 | I15: 0 | J15: 0 | K15: 100 | L15: 应用
A16: 10 | B16: 提前下达2024年中央资金-高层次科研创新体系 | C16: 石家庄学院 | D16: 31.00 | G16: 31.00 | I16: 0 | J16: 0 | K16: 100 | L16: 应用
A17: 11 | B17: 提前下达2024年中央资金-教学业务费 | C17: 石家庄学院 | D17: 1538.00 | G17: 1538.00 | I17: 0 | J17: 0 | K17: 100 | L17: 应用
A18: 12 | B18: 提前下达2024年中央资金-科研经费 | C18: 石家庄学院 | D18: 1123.00 | G18: 1123.00 | I18: 0 | J18: 0 | K18: 100 | L18: 应用
A19: 13 | B19: 2024年中央支持地方高校改革发展资金 | C19: 石家庄学院 | D19: 242.00 | G19: 242.00 | I19: 0 | J19: 0 | K19: 100 | L19: 应用
A20: 14 | B20: 2024年高等教育资助经费（春季建档立卡学生免教科书费） | C20: 石家庄学院 | F20: 9.075 | G20: 9.075 | I20: 0 | J20: 0 | K20: 100 | L20: 应用
A21: 15 | B21: 2024年学生资助中央补助经费（中央资金） | C21: 石家庄学院 | D21: 211.740 | G21: 208.815 | I21: =D21-G21 -> 2.925 | J21: =I21 -> 2.925 | K21: 96 | L21: 应用
A22: 16 | B22: 主导产业急需专业和人才奖励资金 | C22: 石家庄学院 | F22: 115.00 | G22: 115.00 | I22: 0 | J22: 0 | K22: 100 | L22: 应用
A23: 17 | B23: 高等教育资助经费（秋季建档立卡学生免教科书费） | C23: 石家庄学院 | F23: 8.90 | G23: 8.90 | I23: 0 | J23: 0 | K23: 99 | L23: 应用
A24: 18 | B24: 2024年学生资助中央补助经费（第二批）（中央资金） | C24: 石家庄学院 | D24: 125.71 | G24: 125.71 | I24: 0 | J24: 0 | K24: 96 | L24: 应用
A25: 19 | B25: 高校学生资助市级资金（追加） | C25: 石家庄学院 | F25: 30.87 | G25: 27.25 | I25: =F25-G25 -> 3.62 | J25: =I25 -> 3.62 | K25: 95 | L25: 应用
A26: 20 | B26: 信息化运行维护费-网络运行维护费 | C26: 石家庄学院 | F26: 189.6150 | G26: 189.6150 | I26: 0 | J26: 0 | K26: 100 | L26: 应用
A27: 21 | B27: 辅助性用工劳务费用 | C27: 石家庄学院 | F27: 339.60 | G27: 318.538295 | I27: =F27-G27 -> 21.061705 | J27: =I27 -> 21.061705 | K27: 98 | L27: 应用
A28: 22 | B28: 图书设备购置 | C28: 石家庄学院 | F28: 1000.00 | G28: 1000.00 | I28: 0 | J28: 0 | K28: 98 | L28: 应用
A29: 23 | B29: 固定资产贷款本金及利息 | C29: 石家庄学院 | F29: 86.00 | G29: 86.00 | I29: 0 | J29: 0 | K29: 100 | L29: 应用
A30: 24 | B30: 硕士学位授予单位建设经费 | C30: 石家庄学院 | F30: 580.00 | G30: 580.00 | I30: 0 | J30: 0 | K30: 96 | L30: 应用
A31: 25 | B31: 合作办学经费 | C31: 石家庄学院 | F31: 1417 | G31: 1397.210432 | I31: =F31-G31 -> 19.789568 | J31: =I31 -> 19.789568 | K31: 98 | L31: 应用
A32: 26 | B32: 人才引进及培养经费 | C32: 石家庄学院 | F32: 675 | G32: 668.4531 | I32: =F32-G32 -> 6.5469 | J32: =I32 -> 6.5469 | K32: 100 | L32: 应用
A33: 27 | B33: 外教人员劳务费用 | C33: 石家庄学院 | F33: 34.20 | G33: 34.195 | I33: =F33-G33 -> 0.005 | J33: =I33 -> 0.005 | K33: 100 | L33: 应用
A34: 28 | B34: 高考英语口语测试经费 | C34: 石家庄学院 | F34: 55 | G34: 50.168442 | I34: =F34-G34 -> 4.831558 | J34: =I34 -> 4.831558 | K34: 100 | L34: 应用
A35: 29 | B35: 物业服务费 | C35: 石家庄学院 | F35: 638.20 | G35: 637.18985 | I35: =F35-G35 -> 1.01015 | J35: =I35 -> 1.01015 | K35: 100 | L35: 应用
A36: 30 | B36: 教学业务费 | C36: 石家庄学院 | F36: 300.00 | G36: 300.00 | I36: 0 | J36: 0 | K36: 102 | L36: 应用
A37: 31 | B37: 校园改造提升经费 | C37: 石家庄学院 | F37: 1691.00 | G37: 1691.00 | I37: 0 | J37: 0 | K37: 100 | L37: 应用
A38: 32 | B38: 教师因公出国（境）经费 | C38: 石家庄学院 | F38: 75 | G38: 59.202547 | I38: =F38-G38 -> 15.797453 | J38: =I38 -> 15.797453 | K38: 98 | L38: 应用
A39: 33 | B39: 补缴取暖费欠款 | C39: 石家庄学院 | F39: 144.00 | G39: 144.00 | I39: 0 | J39: 0 | K39: 100 | L39: 应用
A40: 34 | B40: 教师引进科研经费 | C40: 石家庄学院 | F40: 3000 | G40: 3,976.706418 | I40: 0 | J40: 0 | K40: 98 | L40: 应用
A41: 35 | B41: 考试等专项工作经费 | C41: 石家庄学院 | F41: 178.50 | G41: 1,199.001798 | I41: 0 | J41: 0 | K41: 99 | L41: 应用
A42: 36 | B42: 2024年专精特新企业科技特派团绩效评奖补 | C42: 石家庄学院 | F42: 2.00 | G42: 2.00 | I42: 0 | J42: 0 | K42: 100 | L42: 应用
A43: 37 | B43: 2024年专精特新企业科技特派团工作补助经费 | C43: 石家庄学院 | F43: 9.00 | G43: 9.00 | I43: 0 | J43: 0 | K43: 100 | L43: 应用
A44: 38 | B44: 2024年市级科技特派员工作补助经费 | C44: 石家庄学院 | F44: 51.84 | G44: 48.864937 | I44: =F44-G44 -> 2.975063 | J44: =I44 -> 2.975063 | K44: 100 | L44: 应用
A45: 39 | B45: 2024年省级科技特派团工作经费补助（省级资金） | C45: 石家庄学院 | E45: 6.00 | G45: 6.00 | I45: 0 | J45: 0 | K45: 100 | L45: 应用
A46: 40 | B46: 2024年省级科技特派员工作补助经费（省级资金） | C46: 石家庄学院 | E46: 117 | G46: 116.933811 | I46: =E46-G46 -> 0.066189 | J46: =I46 -> 0.066189 | K46: 100 | L46: 应用
A47: 41 | B47: 2024年省科学技术创新引导专项资金-省科学技术奖奖金（省级资金） | C47: 石家庄学院 | E47: 10.00 | G47: 10.00 | I47: 0 | J47: 0 | K47: 100 | L47: 应用
A48: 42 | B48: 河北省思想政治工作课题研究经费（省级资金） | C48: 石家庄学院 | E48: 1.40 | G48: 1.40 | I48: 0 | J48: 0 | K48: 100 | L48: 应用
A49: 43 | B49: 债券利息 | C49: 石家庄学院 | F49: 330.60 | G49: 330.60 | I49: 0 | J49: 0 | K49: 100 | L49: 应用
A50: 44 | B50: 债券利息服务费 | C50: 石家庄学院 | F50: 0.02 | G50: 0.01653 | I50: =F50-G50 -> 0.00347 | J50: =I50 -> 0.00347 | K50: 100 | L50: 应用
